[Event "Championnat du monde jeunes U10F"]
[Date "2024.11.16"]
[White "Bakhshi, Rana"]
[Black "Kiss, Villo"]
[WhiteElo "1727"]
[BlackElo "1492"]
[Round "2.30"]
[Result "1-0"]
[TimeControl "5400+30"]

1. d4 {[%clk 1:30:25]} 1... Nf6 {[%clk 1:30:50]} 2. c4 {[%clk 1:29:53]} 2... g6
{[%clk 1:31:05]} 3. Nc3 {[%clk 1:29:16]} 3... d5 {[%clk 1:31:20]} 4. cxd5 {[%clk
1:28:31]} 4... Nxd5 {[%clk 1:31:31]} 5. e4 {[%clk 1:26:48]} 5... Nxc3 {[%clk
1:31:44]} 6. bxc3 {[%clk 1:25:53]} 6... Bg7 {[%clk 1:31:45]} 7. Nf3 {[%clk
1:25:02]} 7... c5 {[%clk 1:31:30]} 8. Bb5+ {[%clk 1:23:56]} 8... Nd7 {[%clk
1:29:46]} 9. O-O {[%clk 1:22:35]} 9... O-O {[%clk 1:29:20]} 10. Re1 {[%clk
1:21:12]} 10... Qa5 {[%clk 1:28:47]} 11. a4 {[%clk 1:13:00]} 11... Qxc3 {[%clk
1:09:27]} 12. Bd2 {[%clk 1:09:09]} 12... Qb2 {[%clk 1:02:27]} 13. Rb1 {[%clk
1:05:33]} 13... Qa2 {[%clk 0:57:39]} 14. Rb3 {[%clk 0:59:54]} 14... a6 {[%clk
0:51:29]} 15. Bd3 {[%clk 0:52:56]} 15... Qxa4 {[%clk 0:51:19]} 16. Bc2 {[%clk
0:47:23]} 16... Qc6 {[%clk 0:50:20]} 17. d5 {[%clk 0:46:33]} 17... Qc7 {[%clk
0:49:13]} 18. h4 {[%clk 0:46:16]} 18... b5 {[%clk 0:41:14]} 19. h5 {[%clk
0:45:26]} 19... e6 {[%clk 0:30:51]} 20. hxg6 {[%clk 0:41:57]} 20... fxg6 {[%clk
0:31:01]} 21. dxe6 {[%clk 0:42:22]} 21... Ne5 {[%clk 0:30:36]} 22. Nxe5 {[%clk
0:39:43]} 22... Qxe5 {[%clk 0:25:44]} 23. Bc3 {[%clk 0:38:18]} 23... Qxe6 {[%clk
0:21:27]} 24. Bxg7 {[%clk 0:38:25]} 24... Kxg7 {[%clk 0:21:33]} 25. Qd2 {[%clk
0:38:29]} 25... Bb7 {[%clk 0:20:38]} 26. Rh3 {[%clk 0:38:35]} 26... h5 {[%clk
0:19:19]} 27. Qg5 {[%clk 0:38:10]} 27... Qf6 {[%clk 0:10:35]} 28. Qe3 {[%clk
0:35:24]} 28... Qf4 {[%clk 0:07:01]} 29. Qc3+ {[%clk 0:34:32]} 29... Rf6 {[%clk
0:04:40]} 30. Rf3 {[%clk 0:34:47]} 30... Qg5 {[%clk 0:03:21]} 31. Rd1 {[%clk
0:34:49]} 31... Bc6 {[%clk 0:03:01]} 32. Rd6 {[%clk 0:34:42]} 32... Rf8 {[%clk
0:01:22]} 33. Rxc6 {[%clk 0:34:01]} 33... Qc1+ {[%clk 0:00:43]} 34. Kh2 {[%clk
0:34:08]} 34... Qg5 {[%clk 0:00:41]} 35. Rfxf6 {[%clk 0:33:48]} 35... Rxf6
{[%clk 0:01:02]} 36. Rc7+ {[%clk 0:34:06]} 36... Kh6 {[%clk 0:01:09]} 37. Qe3
{[%clk 0:32:56]} 37... Rf4 {[%clk 0:00:32]} 38. g3 {[%clk 0:32:25]} 38... Rg4
{[%clk 0:00:45]} 39. Qxg5+ {[%clk 0:32:40]} 39... Rxg5 {[%clk 0:01:09]} 40. f4
{[%clk 0:32:58]} 40... Rg4 {[%clk 0:01:06]} 41. Bd1 {[%clk 0:33:09]} 41... c4
{[%clk 0:01:10]} 42. e5 {[%clk 0:33:25]} 42... a5 {[%clk 0:01:10]} 43. e6 {[%clk
0:33:42]} 43... a4 {[%clk 0:01:28]} 44. e7 {[%clk 0:34:08]} 44... h4 {[%clk
0:01:24]} 45. Bxg4 {[%clk 0:34:23]} 45... hxg3+ {[%clk 0:01:45]} 46. Kxg3 {[%clk
0:34:43]} 46... g5 {[%clk 0:01:52]} 47. e8=Q {[%clk 0:34:43]} 47... a3 {[%clk
0:01:56]} 48. Qe6# {[%clk 0:34:57]} 1-0

[Variant "Standard"]
[Site "Europe Echecs"]

[Event "Championnat du monde jeunes U10F"]
[Date "2024.11.16"]
[White "Babii, Oriiana"]
[Black "Camacho Chavez, Nirvana"]
[WhiteElo "1481"]
[BlackElo "1638"]
[Round "2.33"]
[Result "0-1"]
[TimeControl "5400+30"]

1. e4 {[%clk 1:30:58]} 1... c6 {[%clk 1:30:49]} 2. d4 {[%clk 1:30:46]} 2... d5
{[%clk 1:30:30]} 3. exd5 {[%clk 1:30:37]} 3... cxd5 {[%clk 1:30:42]} 4. Bd3
{[%clk 1:30:17]} 4... Nc6 {[%clk 1:30:59]} 5. c3 {[%clk 1:29:41]} 5... Qc7
{[%clk 1:31:14]} 6. h3 {[%clk 1:23:04]} 6... Nf6 {[%clk 1:31:25]} 7. Nf3 {[%clk
1:21:24]} 7... g6 {[%clk 1:31:43]} 8. Bg5 {[%clk 1:19:24]} 8... Bg7 {[%clk
1:32:01]} 9. Nbd2 {[%clk 1:18:05]} 9... Bf5 {[%clk 1:32:09]} 10. Bxf5 {[%clk
1:15:35]} 10... gxf5 {[%clk 1:29:54]} 11. Qc2 {[%clk 1:13:58]} 11... e6 {[%clk
1:29:58]} 12. Bxf6 {[%clk 1:11:11]} 12... Bxf6 {[%clk 1:30:08]} 13. O-O-O {[%clk
1:09:34]} 13... O-O-O {[%clk 1:28:32]} 14. Rhg1 {[%clk 1:06:30]} 14... Kb8
{[%clk 1:28:18]} 15. g4 {[%clk 1:04:58]} 15... fxg4 {[%clk 1:28:24]} 16. Rxg4
{[%clk 1:02:36]} 16... Rc8 17. Nb3 {[%clk 0:54:51]} 17... h5 {[%clk 1:27:14]}
18. Rg3 {[%clk 0:53:16]} 18... Nb4 {[%clk 1:30:42]} 19. Rg4 {[%clk 0:54:51]}
19... Nc6 {[%clk 1:27:14]} 20. Rg3 {[%clk 0:53:16]} 20... Nb4 {[%clk 1:24:15]}
21. Qe2 {[%clk 0:49:28]} 21... Qf4+ {[%clk 1:18:53]} 0-1

[Variant "Standard"]
[Site "Europe Echecs"]

[Event "Championnat du monde jeunes U10F"]
[Date "2024.11.16"]
[White "Yang, Haeun"]
[Black "Shtepa, Liubov"]
[WhiteElo "1475"]
[BlackElo "1615"]
[Round "2.34"]
[Result "0-1"]
[TimeControl "5400+30"]

1. e4 {[%clk 1:30:57]} 1... e5 {[%clk 1:30:54]} 2. Nf3 {[%clk 1:31:24]} 2... Nc6
{[%clk 1:31:17]} 3. Bc4 {[%clk 1:31:49]} 3... Bc5 {[%clk 1:31:42]} 4. Nc3 {[%clk
1:32:08]} 4... Nf6 {[%clk 1:32:05]} 5. d3 {[%clk 1:32:24]} 5... h6 {[%clk
1:32:06]} 6. h3 {[%clk 1:32:49]} 6... d6 {[%clk 1:32:31]} 7. a3 {[%clk 1:33:05]}
7... a5 {[%clk 1:32:36]} 8. Bd2 {[%clk 1:33:18]} 8... Bd7 {[%clk 1:32:55]} 9.
Qe2 {[%clk 1:33:12]} 9... Qe7 {[%clk 1:32:07]} 10. Ba2 {[%clk 1:33:07]} 10...
Nd4 {[%clk 1:32:09]} 11. Nxd4 {[%clk 1:33:18]} 11... exd4 {[%clk 1:32:21]} 12.
Nd5 {[%clk 1:33:34]} 12... Nxd5 {[%clk 1:32:42]} 13. Bxd5 {[%clk 1:33:57]} 13...
c6 {[%clk 1:33:07]} 14. Bc4 {[%clk 1:34:18]} 14... b5 {[%clk 1:33:16]} 15. Ba2
{[%clk 1:34:25]} 15... Be6 {[%clk 1:33:19]} 16. O-O {[%clk 1:34:12]} 16... Bxa2
{[%clk 1:33:43]} 17. Rxa2 {[%clk 1:34:39]} 17... O-O {[%clk 1:34:05]} 18. Qg4
{[%clk 1:35:01]} 18... Kh8 {[%clk 1:34:14]} 19. c3 {[%clk 1:35:09]} 19... dxc3
{[%clk 1:34:32]} 20. Bxc3 {[%clk 1:35:32]} 20... f6 {[%clk 1:34:52]} 21. Re1
{[%clk 1:35:20]} 21... b4 {[%clk 1:34:35]} 22. axb4 {[%clk 1:35:39]} 22... axb4
{[%clk 1:35:00]} 23. Rxa8 {[%clk 1:35:56]} 23... Rxa8 {[%clk 1:35:23]} 24. Bd2
{[%clk 1:36:16]} 24... Ra2 {[%clk 1:35:36]} 25. Qg6 {[%clk 1:36:18]} 25... Rxb2
{[%clk 1:34:56]} 26. Ra1 {[%clk 1:35:35]} 26... Qf8 {[%clk 1:34:33]} 27. Be3
{[%clk 1:35:40]} 27... Bxe3 {[%clk 1:34:39]} 28. fxe3 {[%clk 1:36:06]} 28... Rb3
{[%clk 1:33:17]} 29. Ra6 {[%clk 1:36:13]} 29... Qc8 {[%clk 1:33:30]} 30. Ra7
{[%clk 1:36:29]} 30... Qg8 {[%clk 1:33:35]} 31. Qg4 {[%clk 1:36:28]} 31... Rxd3
{[%clk 1:33:04]} 32. Rc7 {[%clk 1:36:41]} 32... Qf8 {[%clk 1:33:17]} 33. Ra7
{[%clk 1:36:28]} 33... Qg8 {[%clk 1:33:04]} 34. Rc7 {[%clk 1:36:41]} 34... f5
{[%clk 0:34:27]} 35. Qxf5 {[%clk 1:35:54]} 35... b3 {[%clk 0:22:50]} 36. Rc8
{[%clk 1:36:10]} 36... b2 {[%clk 0:23:11]} 37. Rxg8+ {[%clk 1:36:34]} 37... Kxg8
{[%clk 0:23:35]} 38. Qe6+ {[%clk 1:36:55]} 38... Kh8 {[%clk 0:23:21]} 39. Qa2
{[%clk 1:37:15]} 39... Rd1+ {[%clk 0:23:37]} 40. Kh2 {[%clk 1:37:38]} 40... b1=Q
{[%clk 0:23:41]} 41. Qf2 {[%clk 1:37:30]} 41... Rh1+ {[%clk 0:23:45]} 42. Kg3
{[%clk 1:37:55]} 42... Qxe4 {[%clk 0:23:45]} 43. Qf7 {[%clk 1:37:19]} 43...
Qxe3+ {[%clk 0:24:08]} 44. Kg4 {[%clk 1:37:35]} 44... Qg5+ {[%clk 0:24:33]} 45.
Kf3 {[%clk 1:37:43]} 45... Rf1+ {[%clk 0:24:56]} 46. Ke2 {[%clk 1:38:33]} 46...
Rxf7 {[%clk 0:26:41]} 47. Kd3 {[%clk 1:38:51]} 47... Qd5+ {[%clk 0:26:57]} 48.
Kc3 {[%clk 1:39:11]} 48... Ra7 {[%clk 0:27:15]} 49. g4 {[%clk 1:39:25]} 49...
Ra3+ {[%clk 0:27:34]} 50. Kb2 {[%clk 1:39:50]} 50... Qa2+ {[%clk 0:27:29]} 51.
Kc1 {[%clk 1:40:12]} 51... Rc3+ {[%clk 0:27:40]} 52. Kd1 {[%clk 1:40:36]} 52...
Qh2 {[%clk 0:27:59]} 53. g5 {[%clk 1:40:26]} 53... Ra3 {[%clk 0:28:14]} 54. gxh6
{[%clk 1:40:40]} 54... Ra1# {[%clk 0:28:07]} 0-1

[Variant "Standard"]
[Site "Europe Echecs"]

[Event "Championnat du monde jeunes U10F"]
[Date "2024.11.16"]
[White "Song, Rina"]
[Black "Pambieri, Nicole"]
[WhiteElo "1599"]
[BlackElo "1482"]
[Round "2.35"]
[Result "0-1"]
[TimeControl "5400+30"]

1. e4 {[%clk 1:30:56]} 1... e5 {[%clk 1:30:53]} 2. Nf3 {[%clk 1:31:00]} 2... Nc6
{[%clk 1:31:17]} 3. d4 {[%clk 1:30:50]} 3... exd4 {[%clk 1:31:02]} 4. Bc4 {[%clk
1:30:34]} 4... Bc5 {[%clk 1:26:53]} 5. c3 {[%clk 1:26:47]} 5... Qe7 {[%clk
1:02:19]} 6. O-O dxc3 {[%clk 0:42:24]} 7. Nxc3 {[%clk 1:20:40]} 7... Nf6 {[%clk
0:40:56]} 8. Bg5 {[%clk 1:15:35]} 8... d6 {[%clk 0:31:32]} 9. Nd5 {[%clk
1:14:04]} 9... Qd8 {[%clk 0:31:34]} 10. Re1 {[%clk 1:12:44]} 10... Bg4 {[%clk
0:25:14]} 11. Bb5 {[%clk 1:11:12]} 11... Qe7 {[%clk 1:02:19]} 12. Rf1 {[%clk
1:20:55]} 12... Bc8 {[%clk 0:31:32]} 13. Bc4 {[%clk 1:14:04]} 13... Qd8 {[%clk
0:31:34]} 14. Re1 {[%clk 1:12:44]} 14... Bg4 15. Bb5 h6 {[%clk 0:22:05]} 16. Bh4
{[%clk 1:10:11]} 16... a6 {[%clk 0:17:37]} 17. Bxc6+ {[%clk 1:09:40]} 17... bxc6
{[%clk 0:17:42]} 18. Nxf6+ {[%clk 1:09:33]} 18... gxf6 {[%clk 0:18:01]} 19. Qd3
{[%clk 1:07:49]} 19... Rg8 {[%clk 0:16:02]} 20. e5 {[%clk 1:06:22]} 20... dxe5
{[%clk 0:09:51]} 21. Nxe5 {[%clk 1:04:58]} 21... Qxd3 {[%clk 0:09:57]} 22. Nxd3+
{[%clk 1:05:09]} 22... Be7 {[%clk 0:09:50]} 23. Bxf6 {[%clk 1:04:54]} 23...
O-O-O {[%clk 0:09:03]} 24. Rxe7 {[%clk 1:04:00]} 24... Rxd3 {[%clk 0:09:18]} 25.
Rxf7 {[%clk 1:03:47]} 25... Bh3 {[%clk 0:06:45]} 26. Rg7 {[%clk 1:01:10]} 26...
Rxg7 {[%clk 0:06:39]} 27. Bxg7 {[%clk 0:59:38]} 27... Be6 {[%clk 0:06:35]} 28.
Bxh6 {[%clk 0:59:53]} 28... Kd7 {[%clk 0:06:20]} 29. Kf1 {[%clk 0:59:59]} 29...
Rd6 {[%clk 0:06:12]} 30. a3 {[%clk 0:59:28]} 30... Bc4+ {[%clk 0:06:27]} 31. Ke1
{[%clk 0:59:41]} 31... Rxh6 {[%clk 0:06:47]} 32. h3 {[%clk 0:59:10]} 32... Bd5
{[%clk 0:07:04]} 33. f3 {[%clk 0:59:19]} 33... Rg6 {[%clk 0:07:19]} 34. Kf2
{[%clk 0:59:37]} 34... Ke6 {[%clk 0:06:56]} 35. g4 {[%clk 0:58:59]} 35... Rf6
{[%clk 0:07:16]} 36. Re1+ {[%clk 0:59:15]} 36... Kf7 {[%clk 0:07:23]} 37. Re3
{[%clk 0:59:31]} 0-1

[Variant "Standard"]
[Site "Europe Echecs"]

[Event "Championnat du monde jeunes U10F"]
[Date "2024.11.17"]
[White "Norkulova, Malika"]
[Black "Trzcinska, Weronika"]
[WhiteElo "1480"]
[BlackElo "1653"]
[Round "3.14"]
[Result "1-0"]
[TimeControl "5400+30"]

1. c4 {[%clk 1:30:58]} 1... e5 {[%clk 1:30:52]} 2. Nc3 {[%clk 1:31:21]} 2... Nc6
{[%clk 1:31:01]} 3. g3 {[%clk 1:31:42]} 3... g6 {[%clk 1:31:21]} 4. Bg2 {[%clk
1:31:50]} 4... Bg7 {[%clk 1:31:33]} 5. e4 {[%clk 1:31:26]} 5... Nf6 {[%clk
1:30:36]} 6. Nge2 {[%clk 1:31:44]} 6... O-O {[%clk 1:30:02]} 7. O-O {[%clk
1:32:07]} 7... d6 {[%clk 1:29:08]} 8. d3 {[%clk 1:32:00]} 8... Be6 {[%clk
1:28:19]} 9. a3 {[%clk 1:31:34]} 9... a5 {[%clk 1:24:40]} 10. b3 {[%clk
1:30:25]} 10... Qc8 {[%clk 1:23:18]} 11. Bb2 {[%clk 1:29:59]} 11... Bh3 {[%clk
1:20:58]} 12. Nd5 {[%clk 1:29:24]} 12... Bxg2 {[%clk 1:20:44]} 13. Kxg2 {[%clk
1:29:39]} 13... Nxd5 {[%clk 1:16:38]} 14. cxd5 {[%clk 1:27:26]} 14... Ne7 {[%clk
1:15:42]} 15. Rc1 {[%clk 1:27:28]} 15... c5 {[%clk 1:15:43]} 16. d4 {[%clk
1:26:08]} 16... exd4 {[%clk 1:15:51]} 17. Bxd4 {[%clk 1:26:20]} 17... Bxd4
{[%clk 1:15:38]} 18. Nxd4 {[%clk 1:26:41]} 18... Qd7 {[%clk 1:13:53]} 19. Nf3
{[%clk 1:22:08]} 19... f6 {[%clk 1:11:53]} 20. Qd2 {[%clk 1:15:26]} 20... Kg7
{[%clk 1:04:02]} 21. h3 {[%clk 1:01:11]} 21... Qb5 {[%clk 0:56:10]} 22. b4
{[%clk 0:53:16]} 22... axb4 {[%clk 0:54:58]} 23. axb4 {[%clk 0:47:06]} 23...
cxb4 {[%clk 0:49:56]} 24. Nd4 {[%clk 0:46:59]} 24... Qb6 {[%clk 0:47:58]} 25.
Ne6+ {[%clk 0:46:55]} 25... Kf7 {[%clk 0:48:13]} 26. Nxf8 Rxf8 {[%clk 0:48:33]}
27. Rb1 {[%clk 0:45:40]} 27... Qc5 {[%clk 0:44:27]} 28. Rxb4 {[%clk 0:44:50]}
28... b6 {[%clk 0:43:50]} 29. Rc1 {[%clk 0:45:03]} 29... Qa5 {[%clk 0:44:01]}
30. Rc7 {[%clk 0:45:09]} 30... Rc8 {[%clk 0:42:13]} 31. Rb7 {[%clk 0:44:45]}
31... Rc4 {[%clk 0:37:41]} 32. Qh6 {[%clk 0:42:51]} 32... Rxe4 {[%clk 0:31:46]}
33. Rxe4 {[%clk 0:42:47]} 33... Qxd5 {[%clk 0:32:04]} 34. Rxe7+ {[%clk 0:43:13]}
34... Kg8 {[%clk 0:32:15]} 35. Qg7# {[%clk 0:43:39]} 1-0

[Variant "Standard"]
[Site "Europe Echecs"]

[Event "Championnat du monde jeunes U10F"]
[Date "2024.11.17"]
[White "Vitsiuk, Aleksandra"]
[Black "Li, Wan Qin"]
[WhiteElo "1476"]
[BlackElo "1628"]
[Round "3.28"]
[Result "0-1"]
[TimeControl "5400+30"]

1. e4 {[%clk 1:30:57]} 1... c5 {[%clk 1:30:48]} 2. Nf3 {[%clk 1:31:10]} 2... d6
{[%clk 1:31:05]} 3. d4 {[%clk 1:31:13]} 3... cxd4 {[%clk 1:31:24]} 4. Qxd4
{[%clk 1:31:11]} 4... Nc6 {[%clk 1:31:41]} 5. Bb5 {[%clk 1:30:57]} 5... Bd7
{[%clk 1:31:48]} 6. Bxc6 {[%clk 1:30:49]} 6... Bxc6 {[%clk 1:31:50]} 7. Nc3
{[%clk 1:30:31]} 7... e6 {[%clk 1:31:11]} 8. O-O {[%clk 1:30:05]} 8... Nf6
{[%clk 1:29:39]} 9. Bg5 {[%clk 1:29:08]} 9... e5 {[%clk 1:28:39]} 10. Qd3 {[%clk
1:28:23]} 10... h6 11. Bxf6 {[%clk 1:27:37]} 11... Qxf6 {[%clk 1:24:04]} 12.
Rad1 {[%clk 1:25:39]} 12... Be7 {[%clk 1:22:20]} 13. Nb5 {[%clk 1:23:15]} 13...
O-O {[%clk 1:21:31]} 14. Na3 {[%clk 1:20:50]} 14... Rad8 {[%clk 1:14:24]} 15. c4
{[%clk 1:18:52]} 15... Qg6 {[%clk 1:13:21]} 16. Rfe1 {[%clk 1:17:59]} 16... f5
{[%clk 1:12:30]} 17. Nd2 {[%clk 1:15:34]} 17... fxe4 {[%clk 1:04:37]} 18. Nxe4
{[%clk 1:14:33]} 18... d5 {[%clk 1:04:15]} 19. Ng3 {[%clk 1:12:25]} 19... e4
{[%clk 1:03:53]} 20. Qb3 {[%clk 1:11:07]} 20... Bc5 {[%clk 1:00:44]} 21. Rd2
{[%clk 1:07:25]} 21... d4 {[%clk 0:55:17]} 22. Nc2 {[%clk 1:05:12]} 22... e3
{[%clk 0:47:42]} 23. fxe3 {[%clk 1:03:56]} 23... dxe3 {[%clk 0:47:54]} 24. Rde2
{[%clk 1:02:23]} 24... Rd3 {[%clk 0:48:16]} 25. Qxd3 {[%clk 1:01:32]} 25... Qxd3
{[%clk 0:48:37]} 26. Nxe3 {[%clk 1:01:51]} 26... Re8 {[%clk 0:48:06]} 27. Nf1
{[%clk 1:00:56]} 27... Bb4 {[%clk 0:47:55]} 28. Kf2 {[%clk 0:59:56]} 28... Bxe1+
{[%clk 0:48:11]} 29. Kxe1 {[%clk 1:00:18]} 29... Bxg2 {[%clk 0:48:01]} 30. Rxg2
{[%clk 1:00:09]} 30... Rxe3+ {[%clk 0:48:25]} 31. Nxe3 {[%clk 1:00:34]} 31...
Qxe3+ {[%clk 0:48:47]} 32. Re2 {[%clk 1:00:58]} 32... Qc1+ {[%clk 0:49:07]} 33.
Kf2 {[%clk 1:01:24]} 33... Qxc4 {[%clk 0:49:31]} 34. b3 {[%clk 1:01:30]} 34...
Qf4+ {[%clk 0:49:57]} 35. Ke1 {[%clk 1:01:40]} 35... Kh7 {[%clk 0:50:10]} 36.
Kd1 {[%clk 1:01:20]} 36... Qf1+ {[%clk 0:50:26]} 37. Kd2 {[%clk 1:01:37]} 37...
Qa1 {[%clk 0:50:45]} 38. Ke3 {[%clk 1:01:48]} 38... a5 {[%clk 0:51:06]} 39. Kd3
{[%clk 1:01:02]} 39... h5 {[%clk 0:51:28]} 40. Rc2 {[%clk 1:00:26]} 40... Kh6
{[%clk 0:51:41]} 41. Kc4 {[%clk 1:00:22]} 41... Qe5 {[%clk 0:51:56]} 42. Kd3
{[%clk 1:00:19]} 42... g5 {[%clk 0:52:18]} 43. Re2 {[%clk 0:59:27]} 43... Qd5+
{[%clk 0:52:34]} 44. Kc3 {[%clk 0:59:37]} 44... g4 {[%clk 0:52:52]} 45. Kb2
{[%clk 0:59:49]} 45... h4 {[%clk 0:53:10]} 46. Ka3 {[%clk 0:59:49]} 46... g3
{[%clk 0:53:28]} 47. Ka4 {[%clk 0:59:19]} 47... g2 {[%clk 0:53:44]} 48. Re1
{[%clk 0:59:36]} 48... g1=Q {[%clk 0:53:15]} 49. Rxg1 {[%clk 0:59:53]} 49...
Qd4+ {[%clk 0:53:35]} 0-1

[Variant "Standard"]
[Site "Europe Echecs"]

[Event "Championnat du monde jeunes U10F"]
[Date "2024.11.19"]
[White "Nandinjiguur, Chinzorig"]
[Black "Anistoroaei, Maria"]
[WhiteElo "1807"]
[BlackElo "1715"]
[Round "5.2"]
[Result "1/2-1/2"]
[TimeControl "5400+30"]

1. d4 {[%clk 1:30:58]} 1... d5 {[%clk 1:30:52]} 2. c4 {[%clk 1:31:01]} 2... e6
{[%clk 1:31:15]} 3. Nc3 {[%clk 1:30:59]} 3... Nf6 {[%clk 1:31:28]} 4. Bg5 {[%clk
1:30:47]} 4... Nbd7 {[%clk 1:31:49]} 5. Nf3 {[%clk 1:29:01]} 5... c6 {[%clk
1:32:10]} 6. e3 {[%clk 1:25:24]} 6... Qa5 {[%clk 1:30:59]} 7. Nd2 {[%clk
1:10:50]} 7... Bb4 {[%clk 1:30:23]} 8. Qc2 {[%clk 1:09:47]} 8... O-O {[%clk
1:29:50]} 9. Be2 {[%clk 1:07:57]} 9... Re8 {[%clk 1:24:07]} 10. O-O {[%clk
1:06:55]} 10... dxc4 {[%clk 1:21:37]} 11. Bf4 {[%clk 0:56:21]} 11... b5 {[%clk
1:19:32]} 12. a4 {[%clk 0:55:21]} 12... Qb6 {[%clk 1:12:49]} 13. b3 {[%clk
0:53:56]} 13... cxb3 {[%clk 1:08:19]} 14. Qxb3 {[%clk 0:54:00]} 14... Bxc3
{[%clk 1:08:02]} 15. Qxc3 {[%clk 0:54:11]} 15... Nd5 {[%clk 1:05:04]} 16. Qb2
{[%clk 0:51:18]} 16... Nxf4 {[%clk 1:03:45]} 17. exf4 {[%clk 0:51:38]} 17...
bxa4 {[%clk 1:03:29]} 18. Qc3 {[%clk 0:49:32]} 18... c5 {[%clk 0:56:23]} 19.
Rxa4 {[%clk 0:39:50]} 19... cxd4 {[%clk 0:54:13]} 20. Rxd4 {[%clk 0:39:26]}
20... e5 {[%clk 0:51:22]} 21. Rb4 {[%clk 0:37:01]} 21... Qf6 {[%clk 0:49:33]}
22. Ne4 {[%clk 0:36:13]} 22... Qe7 {[%clk 0:40:56]} 23. Bf3 {[%clk 0:29:19]}
23... Ba6 {[%clk 0:36:20]} 24. Ra1 {[%clk 0:26:29]} 24... Rab8 {[%clk 0:28:34]}
25. Rxb8 {[%clk 0:25:20]} 25... Rxb8 {[%clk 0:23:57]} 26. h3 {[%clk 0:25:00]}
26... Bb7 {[%clk 0:21:53]} 27. Rxa7 {[%clk 0:23:58]} 27... Bxe4 {[%clk 0:17:54]}
28. Bxe4 {[%clk 0:23:15]} 28... exf4 {[%clk 0:15:22]} 29. Bf5 {[%clk 0:20:23]}
29... Qc5 {[%clk 0:09:04]} 30. Bxh7+ {[%clk 0:15:58]} 30... Kxh7 {[%clk
0:07:25]} 31. Qd3+ {[%clk 0:16:21]} 31... Kh8 {[%clk 0:06:16]} 32. Rxd7 {[%clk
0:16:31]} 32... Qe5 {[%clk 0:02:40]} 33. Rxf7 {[%clk 0:09:47]} 33... Qe1+ {[%clk
0:01:32]} 34. Kh2 Qxf2 {[%clk 0:01:08]} 35. Qg6 {[%clk 0:09:13]} 35... Qg3+
{[%clk 0:00:35]} 36. Qxg3 {[%clk 0:09:33]} 36... fxg3+ {[%clk 0:00:58]} 37. Kxg3
{[%clk 0:09:57]} 37... Kh7 {[%clk 0:01:18]} 38. Kg4 {[%clk 0:09:28]} 38... Kg6
{[%clk 0:01:28]} 39. Rf4 {[%clk 0:09:14]} 39... Rb5 {[%clk 0:01:25]} 40. h4
{[%clk 0:08:57]} 40... Kh6 {[%clk 0:01:37]} 41. Rc4 {[%clk 0:08:58]} 41... Rb8
{[%clk 0:01:18]} 42. Rc6+ {[%clk 0:08:13]} 42... g6 {[%clk 0:01:29]} 43. Kh3
{[%clk 0:07:56]} 43... Ra8 {[%clk 0:01:10]} 44. Rc3 {[%clk 0:07:48]} 44... Rb8
{[%clk 0:00:47]} 45. g4 {[%clk 0:07:41]} 45... Rg8 {[%clk 0:00:38]} 46. g5+
{[%clk 0:07:51]} 46... Kh7 {[%clk 0:00:35]} 47. Rc7+ {[%clk 0:07:32]} 47... Kh8
{[%clk 0:00:43]} 48. Rc6 {[%clk 0:07:23]} 48... Kg7 {[%clk 0:00:36]} 49. Kg4
{[%clk 0:07:31]} 49... Rb8 {[%clk 0:00:47]} 50. Rc7+ {[%clk 0:07:07]} 50... Kg8
{[%clk 0:01:05]} 51. Rc4 {[%clk 0:07:28]} 51... Rb1 {[%clk 0:01:05]} 52. Kf4
{[%clk 0:06:55]} 52... Rb5 {[%clk 0:01:10]} 53. Ra4 {[%clk 0:06:14]} 53... Kf7
{[%clk 0:01:07]} 54. Ke4 {[%clk 0:05:50]} 54... Kg7 {[%clk 0:01:23]} 55. Rd4
{[%clk 0:05:49]} 55... Kf7 {[%clk 0:01:23]} 56. Ke3 {[%clk 0:05:47]} 56... Ke6
{[%clk 0:01:22]} 57. Kf4 {[%clk 0:05:36]} 57... Rc5 {[%clk 0:01:30]} 58. Re4+
{[%clk 0:05:36]} 58... Kf7 {[%clk 0:01:49]} 59. Ra4 {[%clk 0:05:53]} 59... Rb5
{[%clk 0:01:52]} 60. Ke4 {[%clk 0:06:00]} 60... Kg7 {[%clk 0:02:05]} 61. Ra7+
{[%clk 0:06:06]} 61... Kg8 {[%clk 0:02:22]} 62. Rd7 {[%clk 0:06:27]} 62... Kh8
{[%clk 0:02:08]} 63. Rd5 {[%clk 0:06:19]} 63... Rb7 {[%clk 0:01:12]} 64. Ke5
{[%clk 0:06:02]} 64... Rf7 {[%clk 0:01:12]} 65. Ke6 {[%clk 0:05:08]} 65... Rf4
{[%clk 0:01:11]} 66. Rd8+ {[%clk 0:05:04]} 66... Kg7 {[%clk 0:01:18]} 67. Rd7+
{[%clk 0:05:02]} 67... Kg8 {[%clk 0:01:29]} 68. Rb7 {[%clk 0:04:07]} 68... Kf8
{[%clk 0:01:21]} 69. Rb3 {[%clk 0:03:12]} 69... Kg7 {[%clk 0:00:51]} 70. Rb7+
{[%clk 0:03:31]} 70... Kg8 {[%clk 0:01:08]} 71. Rd7 {[%clk 0:03:05]} 71... Kf8
{[%clk 0:01:16]} 72. Ke5 {[%clk 0:03:11]} 72... Rf1 {[%clk 0:00:50]} 73. Rd6
{[%clk 0:03:14]} 73... Kg7 {[%clk 0:01:09]} 74. Rd4 {[%clk 0:03:07]} 74... Rf5+
{[%clk 0:00:48]} 75. Ke4 {[%clk 0:02:28]} 75... Rf1 {[%clk 0:00:46]} 76. Rd7+
{[%clk 0:02:39]} 76... Kg8 {[%clk 0:01:01]} 77. Ke5 {[%clk 0:02:35]} 77... Rf2
{[%clk 0:01:14]} 78. Rb7 {[%clk 0:02:33]} 78... Rf3 {[%clk 0:01:29]} 79. Rb6
{[%clk 0:02:24]} 79... Kg7 {[%clk 0:01:48]} 80. Rb4 {[%clk 0:02:31]} 80... Rf5+
{[%clk 0:01:52]} 81. Ke4 {[%clk 0:02:41]} 81... Rf1 {[%clk 0:02:02]} 82. Ke5
{[%clk 0:02:28]} 82... Rf5+ {[%clk 0:02:23]} 83. Ke6 {[%clk 0:02:53]} 83... Rf2
{[%clk 0:02:27]} 84. Rb7+ {[%clk 0:02:44]} 84... Kg8 {[%clk 0:02:48]} 85. Re7
{[%clk 0:02:37]} 85... Rf4 {[%clk 0:02:56]} 86. Re8+ {[%clk 0:02:05]} 86... Kg7
{[%clk 0:03:17]} 87. Re7+ {[%clk 0:02:23]} 87... Kg8 {[%clk 0:03:40]} 88. Ke5
{[%clk 0:02:11]} 88... Rf1 {[%clk 0:03:55]} 89. Rd7 {[%clk 0:02:14]} 89... Rf2
{[%clk 0:04:14]} 90. Rd4 {[%clk 0:02:37]} 90... Rf5+ {[%clk 0:04:36]} 91. Ke4
{[%clk 0:02:39]} 91... Rf1 {[%clk 0:04:36]} 92. Rd3 {[%clk 0:02:31]} 92... Kg7
{[%clk 0:04:40]} 93. Rf3 {[%clk 0:02:52]} 93... Re1+ {[%clk 0:04:52]} 94. Kf4
{[%clk 0:03:15]} 94... Re7 {[%clk 0:05:02]} 95. Kg4 {[%clk 0:03:25]} 95... Re4+
{[%clk 0:05:10]} 96. Kg3 {[%clk 0:03:10]} 96... Re7 {[%clk 0:04:02]} 1/2-1/2

[Variant "Standard"]
[Site "Europe Echecs"]